[Event "2nd Serbian League-Vojvodina 2023"]
[Site "Novi Sad"]
[Date "2023.11.05"]
[Round "5.15"]
[White "Sekulic, Dusan"]
[Black "Grujic, Zoran"]
[Result "0-1"]
[ECO "D30"]
[WhiteElo "2145"]
[BlackElo "2315"]
[Annotator "RC"]
[PlyCount "90"]
[EventDate "2023.10.22"]
[EventType "team-tourn"]
[EventCountry "SRB"]
[SourceTitle "playchess.com"]
[Source "ChessBase"]
[SourceQuality "1"]
[TimeControl "40/5400+30:1800+30"]

1. d4 {[%emt 0:00:06]} Nf6 {[%emt 0:00:04]} 2. Nf3 {[%emt 0:00:15]} e6 {[%emt 0:00:04]} 3. c4 {[%emt 0:00:15]} d5 {[%emt 0:00:07]} 4. e3 {[%emt 0:00:14]} a6 {[%emt 0:00:13]} 5. Nbd2 {[%emt 0:02:22]} c5 {[%emt 0:00:29]} 6. a3 {[%emt 0:00:52]} cxd4 {[%emt 0:00:37]} 7. exd4 {[%emt 0:00:26]} dxc4 {[%emt 0:02:33]} 8. Bxc4 {[%emt 0:04:18]} Be7 {[%emt 0:00:39]} 9. O-O {[%emt 0:00:12]} O-O {[%emt 0:00:05]} 10. Re1 {[%emt 0:00:44]} Bd7 {[%emt 0:01:11]} 11. Ne5 {[%emt 0:01:20]} Bc6 {[%emt 0:00:19]} 12. Nxc6 {[%emt 0:01:25]} Nxc6 {[%emt 0:00:25]} 13. Nf3 {[%emt 0:00:15]} Qd6 {[%emt 0:01:08]} 14. b4 {[%emt 0:10:18]} Rfd8 {[%emt 0:02:03]} 15. Bb2 {[%emt 0:00:18]} Rac8 {[%emt 0:02:41]} 16. Qb3 {[%emt 0:06:12]} Nd5 {[%emt 0:01:32]} 17. Rad1 {[%emt 0:00:19]} Bf6 {[%emt 0:01:23]} 18. Ne5 {[%emt 0:00:41]} Rc7 {[%emt 0:08:15]} 19. g3 {[%emt 0:09:34]} g6 {[%emt 0:02:44]} 20. f4 {[%emt 0:07:11]} Nce7 {[%emt 0:02:22]} 21. Bd3 {[%emt 0:12:32]} b5 {[%emt 0:05:16]} 22. Rc1 {[%emt 0:01:13]} Rdc8 {[%emt 0:02:10]} 23. Rc5 {[%emt 0:00:33]} Nb6 {[%emt 0:00:16]} 24. Rec1 {[%emt 0:05:18]} Na4 {[%emt 0:00:17]} 25. Rxc7 {[%emt 0:04:01]} Rxc7 {[%emt 0:00:06]} 26. Rxc7 {[%emt 0:01:06]} Qxc7 {[%emt 0:00:06]} 27. Be4 {[%emt 0:00:42]} Bxe5 {[%emt 0:09:34]} 28. dxe5 {[%emt 0:06:05]} Nd5 {[%emt 0:06:26]} 29. Bd4 {[%emt 0:01:45]} Qc1+ {[%emt 0:00:30]} 30. Kg2 {[%emt 0:01:03]} Qd2+ {[%emt 0:00:38]} 31. Bf2 {[%emt 0:00:58]} Nac3 {[%emt 0:00:16]} 32. Bxd5 {[%emt 0:06:33]} exd5 {[%emt 0:00:17]} 33. h4 {[%emt 0:02:08]} h5 {[%emt 0:00:17]} 34. Kg1 {[%emt 0:03:01]} Kg7 {[%emt 0:04:04]} 35. Kg2 {[%emt 0:01:41]} d4 {[%emt 0:07:06]} 36. e6 {[%emt 0:02:21]} Nd1 {[%emt 0:00:31]} 37. Qf3 {[%emt 0:00:58]} fxe6 {[%emt 0:05:25]} 38. Kf1 {[%emt 0:02:06]} Qxf2+ {[%emt 0:02:19]} 39. Qxf2 {[%emt 0:00:05]} Nxf2 {[%emt 0:00:05]} 40. Kxf2 {[%emt 0:00:08]} Kf6 {[%emt 0:00:09]} 41. Ke2 {[%emt 0:33:58]} Kf5 {[%emt 0:30:07]} 42. Kf3 {[%emt 0:00:37]} e5 {[%emt 0:00:22]} 43. fxe5 {[%emt 0:00:20]} Kxe5 {[%emt 0:00:06]} 44. g4 {[%emt 0:03:28]} hxg4+ {[%emt 0:00:24]} 45. Kxg4 {[%emt 0:00:01]} d3 {[%emt 0:00:29]} 0-1

[Event "2nd Serbian League-Vojvodina 2023"]
[Site "Novi Sad"]
[Date "2023.11.05"]
[Round "5.16"]
[White "Dragojlovic, Andjelko"]
[Black "Kovacevic, Sinisa"]
[Result "1/2-1/2"]
[ECO "C00"]
[WhiteElo "2108"]
[BlackElo "2240"]
[Annotator "RC"]
[PlyCount "36"]
[EventDate "2023.10.22"]
[EventType "team-tourn"]
[EventCountry "SRB"]
[SourceTitle "playchess.com"]
[Source "ChessBase"]
[SourceQuality "1"]
[TimeControl "40/5400+30:1800+30"]

1. e4 {[%emt 1:31:00]} e6 {[%emt 1:31:00]} 2. d3 {[%emt 0:00:30]} d5 {[%emt 0:00:30]} 3. Nd2 {[%emt 0:00:30]} c5 {[%emt 0:00:30]} 4. g3 {[%emt 0:00:30]} Nc6 {[%emt 0:00:30]} 5. Bg2 {[%emt 0:00:30]} Nf6 {[%emt 0:00:30]} 6. Nh3 {[%emt 0:00:30]} Be7 {[%emt 0:00:30]} 7. O-O {[%emt 0:00:30]} O-O {[%emt 0:00:30]} 8. f4 {[%emt 0:00:30]} Qc7 {[%emt 0:00:30]} 9. Nf2 {[%emt 0:00:30]} Rd8 {[%emt 0:00:30]} 10. e5 {[%emt 0:00:30]} Nd7 {[%emt 0:00:30]} 11. Nf3 {[%emt 0:00:30]} b5 {[%emt 0:00:30]} 12. c3 {[%emt 0:00:30]} b4 {[%emt 0:00:30]} 13. d4 bxc3 14. bxc3 cxd4 15. cxd4 Ba6 16. Re1 {[%emt 0:02:00]} Nb4 {[%emt 0:02:00]} 17. Ba3 Nb6 {[%emt 0:00:30]} 18. f5 {[%emt 0:01:00]} Nc4 {[%emt 0:00:30]} 1/2-1/2

[Event "2nd Serbian League-Vojvodina 2023"]
[Site "Novi Sad"]
[Date "2023.11.05"]
[Round "5.17"]
[White "Parezanin, Darko"]
[Black "Ilincic, Aleksa"]
[Result "0-1"]
[ECO "A22"]
[WhiteElo "2192"]
[BlackElo "2235"]
[Annotator "RC"]
[PlyCount "76"]
[EventDate "2023.10.22"]
[EventType "team-tourn"]
[EventCountry "SRB"]
[SourceTitle "playchess.com"]
[Source "ChessBase"]
[SourceQuality "1"]
[TimeControl "40/5400+30:1800+30"]

1. c4 {[%emt 1:31:00]} e5 {[%emt 1:31:00]} 2. Nc3 {[%emt 0:00:30]} Nf6 {[%emt 0:00:30]} 3. g3 {[%emt 0:00:30]} Bb4 {[%emt 0:00:30]} 4. Bg2 {[%emt 0:00:30]} O-O {[%emt 0:00:30]} 5. Nf3 {[%emt 0:00:30]} Re8 {[%emt 0:00:30]} 6. O-O {[%emt 0:00:30]} c6 {[%emt 0:00:30]} 7. a3 {[%emt 0:00:30]} Bf8 {[%emt 0:00:30]} 8. d3 {[%emt 0:00:30]} h6 {[%emt 0:00:30]} 9. b4 {[%emt 0:00:30]} d5 {[%emt 0:00:30]} 10. cxd5 {[%emt 0:00:30]} cxd5 {[%emt 0:00:30]} 11. Bb2 {[%emt 0:00:30]} Bf5 {[%emt 0:00:30]} 12. Rc1 {[%emt 0:00:30]} a5 {[%emt 0:00:30]} 13. b5 {[%emt 0:00:30]} Nbd7 {[%emt 0:00:30]} 14. Na4 {[%emt 0:00:30]} Bd6 {[%emt 0:00:30]} 15. e4 {[%emt 0:00:30]} Be6 {[%emt 0:00:30]} 16. exd5 {[%emt 0:00:30]} Bxd5 {[%emt 0:00:30]} 17. Nc3 {[%emt 0:00:30]} Be6 {[%emt 0:00:30]} 18. d4 {[%emt 0:00:30]} e4 {[%emt 0:00:30]} 19. Nd2 {[%emt 0:00:30]} Bg4 {[%emt 0:00:30]} 20. Qb3 {[%emt 0:00:30]} e3 {[%emt 0:00:30]} 21. fxe3 {[%emt 0:00:30]} Rxe3 {[%emt 0:00:30]} 22. Nde4 {[%emt 0:00:30]} Qb6 {[%emt 0:00:30]} 23. Nxf6+ {[%emt 0:00:30]} Nxf6 {[%emt 0:00:30]} 24. Na4 {[%emt 0:00:30]} Rxb3 {[%emt 0:00:30]} 25. Nxb6 {[%emt 0:00:30]} Rd8 {[%emt 0:00:30]} 26. Nc4 {[%emt 0:00:30]} Rxb5 {[%emt 0:00:30]} 27. Bc3 {[%emt 0:00:30]} a4 {[%emt 0:00:30]} 28. Rb1 {[%emt 0:00:30]} Rb3 {[%emt 0:00:30]} 29. Rxb3 {[%emt 0:00:30]} axb3 {[%emt 0:00:30]} 30. Bxb7 {[%emt 0:00:30]} Be2 {[%emt 0:00:30]} 31. Nxd6 {[%emt 0:00:30]} Bxf1 {[%emt 0:00:30]} 32. Kxf1 {[%emt 0:00:30]} Rxd6 {[%emt 0:00:30]} 33. Bb2 {[%emt 0:00:30]} Rd7 {[%emt 0:00:30]} 34. Bc6 {[%emt 0:00:30]} Rc7 {[%emt 0:00:30]} 35. d5 {[%emt 0:00:30]} Nxd5 {[%emt 0:00:30]} 36. Bxd5 {[%emt 0:00:30]} Rc2 {[%emt 0:00:30]} 37. Be5 {[%emt 0:00:30]} b2 {[%emt 0:00:30]} 38. Be4 {[%emt 0:00:30]} b1=Q# {[%emt 0:00:30]} 0-1

[Event "2nd Serbian League-Vojvodina 2023"]
[Site "Novi Sad"]
[Date "2023.11.05"]
[Round "5.18"]
[White "Stikovic, Dobrica"]
[Black "Krejic, Igor"]
[Result "1/2-1/2"]
[ECO "D51"]
[WhiteElo "2162"]
[BlackElo "2128"]
[Annotator "ChessBase"]
[PlyCount "86"]
[EventDate "2023.10.22"]
[EventType "team-tourn"]
[EventCountry "SRB"]
[SourceTitle "playchess.com"]
[Source "ChessBase"]
[SourceQuality "1"]
[TimeControl "40/5400+30:1800+30"]

1. Nf3 {[%emt 1:31:00]} Nf6 {[%emt 1:31:00]} 2. c4 {[%emt 0:00:30]} e6 {[%emt 0:00:30]} 3. Nc3 {[%emt 0:00:30]} d5 {[%emt 0:00:30]} 4. d4 {[%emt 0:00:30]} Nbd7 {[%emt 0:00:30]} 5. cxd5 {[%emt 0:00:30]} exd5 {[%emt 0:00:30]} 6. Bg5 {[%emt 0:00:30]} c6 {[%emt 0:00:30]} 7. Qc2 {[%emt 0:00:30]} Qa5 {[%emt 0:00:30]} 8. Nd2 {[%emt 0:00:30]} Be7 {[%emt 0:00:30]} 9. e3 {[%emt 0:00:30]} O-O {[%emt 0:00:30]} 10. Bd3 {[%emt 0:00:30]} Re8 {[%emt 0:00:30]} 11. O-O {[%emt 0:00:30]} Nf8 {[%emt 0:00:30]} 12. a3 {[%emt 0:00:30]} Qd8 {[%emt 0:00:30]} 13. b4 {[%emt 0:00:30]} Bd7 {[%emt 0:00:30]} 14. b5 {[%emt 0:00:30]} h6 {[%emt 0:00:30]} 15. Bxf6 {[%emt 0:00:30]} Bxf6 {[%emt 0:00:30]} 16. bxc6 {[%emt 0:00:30]} Bxc6 {[%emt 0:00:30]} 17. Rfc1 {[%emt 0:00:30]} Ne6 {[%emt 0:00:30]} 18. Rab1 {[%emt 0:00:30]} g6 {[%emt 0:00:30]} 19. a4 {[%emt 0:00:30]} Rc8 {[%emt 0:00:30]} 20. Qa2 {[%emt 0:00:30]} Be7 {[%emt 0:00:30]} 21. Nb5 {[%emt 0:00:30]} Ra8 {[%emt 0:00:30]} 22. Nf3 {[%emt 0:00:30]} a6 {[%emt 0:00:30]} 23. Nc3 {[%emt 0:00:30]} Bd6 {[%emt 0:00:30]} 24. Qb3 {[%emt 0:00:30]} Kg7 {[%emt 0:00:30]} 25. h4 {[%emt 0:00:30]} Nf8 {[%emt 0:00:30]} 26. Rb2 {[%emt 0:00:30]} Nh7 {[%emt 0:00:30]} 27. Bb1 {[%emt 0:00:30]} Nf6 {[%emt 0:00:30]} 28. Ba2 {[%emt 0:00:30]} Qe7 {[%emt 0:00:30]} 29. h5 {[%emt 0:00:30]} g5 {[%emt 0:00:30]} 30. Re2 {[%emt 0:00:30]} Rad8 {[%emt 0:00:30]} 31. Qc2 {[%emt 0:00:30]} Bb8 {[%emt 0:00:30]} 32. Bb1 {[%emt 0:00:30]} Bd7 {[%emt 0:00:30]} 33. Nxd5 {[%emt 0:00:30]} Bxa4 {[%emt 0:00:30]} 34. Nxe7 {[%emt 0:00:30]} Bxc2 {[%emt 0:00:30]} 35. Nc6 {[%emt 0:00:30]} bxc6 {[%emt 0:00:30]} 36. Rexc2 {[%emt 0:00:30]} Re6 {[%emt 0:00:30]} 37. Rxc6 {[%emt 0:00:30]} Rxc6 {[%emt 0:00:30]} 38. Rxc6 {[%emt 0:00:30]} Rd6 {[%emt 0:00:30]} 39. Rxd6 {[%emt 0:00:30]} Bxd6 {[%emt 0:00:30]} 40. e4 {[%emt 0:00:30]} Nxh5 {[%emt 0:00:30]} 41. g3 {[%emt 0:30:30]} Kf8 {[%emt 0:30:30]} 42. Kf1 {[%emt 0:00:30]} Ng7 {[%emt 0:00:30]} 43. Ke2 {[%emt 0:00:30]} Bb4 {[%emt 0:00:30]} 1/2-1/2

[Event "2nd Serbian League-Vojvodina 2023"]
[Site "Novi Sad"]
[Date "2023.11.05"]
[Round "5.19"]
[White "Bokros, Albert"]
[Black "Balla, Tamas-Kristof"]
[Result "1/2-1/2"]
[ECO "B38"]
[WhiteElo "2447"]
[BlackElo "2308"]
[Annotator "RC"]
[PlyCount "45"]
[EventDate "2023.10.22"]
[EventType "team-tourn"]
[EventCountry "SRB"]
[SourceTitle "playchess.com"]
[Source "ChessBase"]
[SourceQuality "1"]
[TimeControl "40/5400+30:1800+30"]

1. e4 {[%emt 0:00:03]} c5 {[%emt 0:04:52]} 2. Nf3 {[%emt 0:01:52]} g6 {[%emt 0:00:07]} 3. d4 {[%emt 0:00:16]} cxd4 {[%emt 0:00:09]} 4. Nxd4 {[%emt 0:00:12]} Bg7 {[%emt 0:00:12]} 5. c4 {[%emt 0:00:07]} Nc6 {[%emt 0:00:07]} 6. Be3 {[%emt 0:00:07]} Qb6 {[%emt 0:00:07]} 7. Nb3 {[%emt 0:03:47]} Qd8 {[%emt 0:00:18]} 8. Qd2 {[%emt 0:01:28]} Nf6 {[%emt 0:00:47]} 9. f3 {[%emt 0:00:51]} d6 {[%emt 0:00:24]} 10. Be2 {[%emt 1:26:47]} Be6 {[%emt 0:02:48]} 11. O-O {[%emt 0:00:00]} O-O {[%emt 0:00:44]} 12. Na3 {[%emt 0:00:00]} a5 {[%emt 0:01:26]} 13. Nb5 {[%emt 0:00:00]} Nd7 {[%emt 0:05:26]} 14. Rfd1 {[%emt 0:00:00]} a4 {[%emt 0:04:56]} 15. N3d4 {[%emt 0:00:00]} Nxd4 {[%emt 0:00:32]} 16. Nxd4 {[%emt 0:00:00]} Qa5 {[%emt 0:00:18]} 17. Nxe6 {[%emt 0:00:00]} fxe6 {[%emt 0:09:49]} 18. Rac1 {[%emt 0:00:00]} Rfc8 {[%emt 0:00:57]} 19. Rc2 {[%emt 0:00:00]} Qxd2 {[%emt 0:03:34]} 20. Rdxd2 {[%emt 0:00:00]} Nc5 {[%emt 1:02:57]} 21. Bd1 {[%emt 0:00:00]} Na6 {[%emt 0:00:00]} 22. a3 {[%emt 0:00:00]} Nc5 {[%emt 0:00:00]} 23. Rc1 {[%emt 0:00:00]} 1/2-1/2

[Event "2nd Serbian League-Vojvodina 2023"]
[Site "Novi Sad"]
[Date "2023.11.05"]
[Round "5.20"]
[White "Kopasz, Robert"]
[Black "Varga, Zoltan"]
[Result "1/2-1/2"]
[ECO "D02"]
[WhiteElo "2241"]
[BlackElo "2356"]
[Annotator "RC"]
[PlyCount "36"]
[EventDate "2023.10.22"]
[EventType "team-tourn"]
[EventCountry "SRB"]
[SourceTitle "playchess.com"]
[Source "ChessBase"]
[SourceQuality "1"]
[TimeControl "40/5400+30:1800+30"]

1. d4 {[%emt 0:00:49]} d5 {[%emt 0:00:04]} 2. Nf3 {[%emt 0:00:24]} c6 {[%emt 0:00:09]} 3. g3 {[%emt 0:01:49]} Nf6 {[%emt 0:00:13]} 4. Bg2 {[%emt 0:00:04]} Bg4 {[%emt 0:00:04]} 5. O-O {[%emt 0:01:28]} Nbd7 {[%emt 0:00:36]} 6. Nbd2 {[%emt 0:01:49]} e6 {[%emt 0:00:20]} 7. Re1 {[%emt 0:01:20]} Be7 {[%emt 0:00:26]} 8. e4 {[%emt 0:01:28]} O-O {[%emt 0:01:26]} 9. c3 {[%emt 1:25:49]} Bh5 {[%emt 0:00:26]} 10. Qb3 {[%emt 0:00:00]} Qb6 {[%emt 0:02:29]} 11. exd5 {[%emt 0:00:00]} cxd5 {[%emt 0:01:36]} 12. Qxb6 {[%emt 0:00:00]} axb6 {[%emt 0:00:41]} 13. Ne5 {[%emt 0:00:00]} Nxe5 {[%emt 0:03:15]} 14. dxe5 {[%emt 0:00:00]} Nd7 {[%emt 0:05:49]} 15. Nb3 {[%emt 0:00:00]} b5 {[%emt 0:10:14]} 16. Bf1 {[%emt 0:00:00]} b4 {[%emt 0:01:40]} 17. Bd2 {[%emt 0:00:00]} bxc3 {[%emt 0:01:01]} 18. Bxc3 {[%emt 0:00:00]} Nb6 {[%emt 0:03:19]} 1/2-1/2

[Event "2nd Serbian League-Vojvodina 2023"]
[Site "Novi Sad"]
[Date "2023.11.05"]
[Round "5.21"]
[White "Strbac, Mladen"]
[Black "Nagy, Attila N"]
[Result "1-0"]
[ECO "B60"]
[WhiteElo "2246"]
[BlackElo "2164"]
[Annotator "RC"]
[PlyCount "51"]
[EventDate "2023.10.22"]
[EventType "team-tourn"]
[EventCountry "SRB"]
[SourceTitle "playchess.com"]
[Source "ChessBase"]
[SourceQuality "1"]
[TimeControl "40/5400+30:1800+30"]

1. e4 {[%emt 0:00:11]} c5 {[%emt 0:00:11]} 2. Nf3 {[%emt 0:00:14]} d6 {[%emt 0:01:14]} 3. d4 {[%emt 0:00:24]} cxd4 {[%emt 0:00:07]} 4. Nxd4 {[%emt 0:01:19]} Nf6 {[%emt 0:00:12]} 5. Nc3 {[%emt 0:00:11]} Nc6 {[%emt 0:01:39]} 6. Bg5 {[%emt 0:00:32]} g6 {[%emt 0:01:15]} 7. Bxf6 {[%emt 0:04:03]} exf6 {[%emt 0:00:09]} 8. Bb5 {[%emt 0:02:07]} Bd7 {[%emt 0:00:10]} 9. Qd3 {[%emt 0:04:59]} Be7 {[%emt 1:30:03]} 10. O-O-O {[%emt 0:12:26]} O-O {[%emt 0:00:00]} 11. f4 {[%emt 0:12:27]} Rc8 {[%emt 0:01:00]} 12. a3 {[%emt 0:57:37]} Re8 {[%emt 0:00:00]} 13. Bc4 {[%emt 0:00:30]} Bf8 {[%emt 0:01:00]} 14. Ba2 {[%emt 0:00:30]} Bh6 {[%emt 0:00:30]} 15. Nde2 {[%emt 0:00:30]} Be6 {[%emt 0:00:00]} 16. Kb1 {[%emt 0:00:00]} Bf8 {[%emt 0:00:00]} 17. h4 {[%emt 0:01:00]} f5 {[%emt 0:01:30]} 18. Bxe6 {[%emt 0:00:00]} fxe6 {[%emt 0:00:00]} 19. h5 {[%emt 0:01:00]} Qf6 {[%emt 0:01:00]} 20. g4 {[%emt 0:00:30]} Bg7 {[%emt 0:00:30]} 21. g5 {[%emt 0:00:00]} fxe4 {[%emt 0:00:00]} 22. Qxe4 {[%emt 0:00:00]} Qe7 {[%emt 0:00:00]} 23. hxg6 {[%emt 0:00:00]} d5 {[%emt 0:00:00]} 24. Qd3 {[%emt 0:00:00]} Na5 {[%emt 0:00:00]} 25. Rxh7 {[%emt 0:00:00]} Nc4 {[%emt 0:00:00]} 26. Rdh1 {[%emt 0:00:00]} 1-0

[Event "2nd Serbian League-Vojvodina 2023"]
[Site "Novi Sad"]
[Date "2023.11.05"]
[Round "5.22"]
[White "Gusev, Mikhail"]
[Black "Milanovic, Marko"]
[Result "1-0"]
[ECO "C77"]
[WhiteElo "2012"]
[BlackElo "2248"]
[Annotator "RC"]
[PlyCount "91"]
[EventDate "2023.10.22"]
[EventType "team-tourn"]
[EventCountry "SRB"]
[SourceTitle "playchess.com"]
[Source "ChessBase"]
[SourceQuality "1"]
[TimeControl "40/5400+30:1800+30"]

1. e4 {[%emt 0:00:04]} e5 {[%emt 0:00:24]} 2. Nf3 {[%emt 0:00:09]} Nc6 {[%emt 0:00:25]} 3. Bb5 {[%emt 0:00:06]} a6 {[%emt 0:00:45]} 4. Ba4 {[%emt 0:00:11]} Nf6 {[%emt 0:00:23]} 5. d3 {[%emt 0:00:12]} d6 {[%emt 0:01:25]} 6. c3 {[%emt 0:00:47]} Be7 {[%emt 0:01:08]} 7. O-O {[%emt 0:00:46]} O-O {[%emt 1:29:30]} 8. Nbd2 {[%emt 0:00:36]} b5 {[%emt 0:00:00]} 9. Bc2 {[%emt 0:00:14]} h6 {[%emt 0:00:00]} 10. Re1 {[%emt 0:01:18]} Re8 {[%emt 0:00:00]} 11. Nf1 {[%emt 0:02:21]} Bf8 {[%emt 0:00:00]} 12. Ng3 {[%emt 0:02:43]} d5 {[%emt 0:00:00]} 13. Qe2 {[%emt 0:06:44]} Be6 {[%emt 0:00:00]} 14. h3 {[%emt 1:21:19]} d4 {[%emt 0:03:30]} 15. cxd4 {[%emt 0:00:00]} Nxd4 {[%emt 0:00:00]} 16. Nxd4 {[%emt 0:00:00]} Qxd4 {[%emt 0:00:00]} 17. Bb3 {[%emt 0:00:00]} Bxb3 {[%emt 0:00:00]} 18. axb3 {[%emt 0:00:00]} Qb4 {[%emt 0:00:00]} 19. Ra3 {[%emt 0:00:00]} Re6 {[%emt 0:00:00]} 20. Nf5 {[%emt 0:00:00]} Rd8 {[%emt 0:00:00]} 21. Bd2 {[%emt 0:00:00]} Qc5 {[%emt 0:00:00]} 22. Rc1 {[%emt 0:00:00]} Qa7 {[%emt 0:00:00]} 23. b4 {[%emt 0:00:00]} Kh7 {[%emt 0:00:00]} 24. Rac3 {[%emt 0:00:00]} Rd7 {[%emt 0:00:00]} 25. Rc6 {[%emt 0:00:00]} Qb7 {[%emt 0:00:00]} 26. Rxe6 {[%emt 0:00:00]} fxe6 {[%emt 0:00:00]} 27. Ng3 {[%emt 0:00:00]} Rd6 {[%emt 0:00:00]} 28. Bc3 {[%emt 0:00:00]} Qc6 {[%emt 0:03:42]} 29. Rd1 {[%emt 0:00:00]} Rd7 {[%emt 0:01:40]} 30. Bxe5 {[%emt 0:00:00]} Bxb4 {[%emt 0:00:37]} 31. Bxf6 {[%emt 0:00:00]} gxf6 {[%emt 0:00:03]} 32. Nh5 {[%emt 0:00:00]} Rf7 {[%emt 0:01:09]} 33. d4 {[%emt 0:01:52]} Qc4 {[%emt 0:01:35]} 34. Qf3 {[%emt 0:02:08]} f5 {[%emt 0:00:24]} 35. e5 {[%emt 0:01:41]} c6 {[%emt 0:00:46]} 36. Nf6+ {[%emt 0:00:51]} Rxf6 {[%emt 0:00:32]} 37. exf6 {[%emt 0:00:13]} Kg6 {[%emt 0:00:14]} 38. Qe3 {[%emt 0:01:24]} Kxf6 {[%emt 0:00:37]} 39. Rc1 {[%emt 0:00:52]} Qd5 {[%emt 0:00:27]} 40. Qxh6+ {[%emt 0:00:10]} Kf7 {[%emt 0:00:01]} 41. Qh7+ {[%emt 0:30:45]} Kf6 {[%emt 0:30:21]} 42. Qg8 {[%emt 0:00:39]} Qd7 {[%emt 0:01:06]} 43. Qa8 {[%emt 0:00:48]} c5 {[%emt 0:00:40]} 44. dxc5 {[%emt 0:00:48]} Bxc5 {[%emt 0:00:28]} 45. Qh8+ {[%emt 0:00:26]} Kg6 {[%emt 0:00:24]} 46. Rxc5 {[%emt 0:00:08]} 1-0

[Event "2nd Serbian League-Vojvodina 2023"]
[Site "Novi Sad"]
[Date "2023.11.05"]
[Round "5.23"]
[White "Levnajic, Pavle"]
[Black "Molnar Gabor, Roland"]
[Result "1/2-1/2"]
[ECO "D60"]
[WhiteElo "2160"]
[BlackElo "2041"]
[Annotator "ChessBase"]
[PlyCount "76"]
[EventDate "2023.10.22"]
[EventType "team-tourn"]
[EventCountry "SRB"]
[SourceTitle "playchess.com"]
[Source "ChessBase"]
[SourceQuality "1"]
[TimeControl "40/5400+30:1800+30"]

1. d4 {[%emt 0:00:07]} d5 {[%emt 0:00:09]} 2. c4 {[%emt 0:00:14]} e6 {[%emt 0:00:06]} 3. Nc3 {[%emt 0:01:32]} Nf6 {[%emt 0:00:27]} 4. Bg5 {[%emt 0:00:55]} Be7 {[%emt 0:00:14]} 5. e3 {[%emt 0:00:18]} Ne4 {[%emt 0:01:34]} 6. Bxe7 {[%emt 0:01:21]} Qxe7 {[%emt 0:00:23]} 7. Qc2 {[%emt 0:02:11]} Nxc3 {[%emt 0:03:54]} 8. Qxc3 {[%emt 0:00:07]} O-O {[%emt 0:01:03]} 9. Nf3 {[%emt 0:00:06]} c6 {[%emt 0:05:08]} 10. Bd3 {[%emt 0:03:12]} dxc4 {[%emt 0:03:35]} 11. Bxc4 {[%emt 0:03:18]} b6 {[%emt 0:07:53]} 12. O-O {[%emt 0:01:25]} Bb7 {[%emt 0:07:40]} 13. Rfd1 {[%emt 0:02:32]} Nd7 {[%emt 0:01:37]} 14. e4 {[%emt 0:03:53]} Rfd8 {[%emt 0:04:48]} 15. a4 {[%emt 0:04:57]} Nf6 {[%emt 0:13:24]} 16. e5 {[%emt 0:11:26]} Nd5 {[%emt 0:08:13]} 17. Qb3 {[%emt 0:09:17]} c5 {[%emt 0:07:15]} 18. a5 {[%emt 0:09:25]} Rab8 {[%emt 0:06:20]} 19. Rac1 {[%emt 0:10:51]} cxd4 {[%emt 0:04:13]} 20. Rxd4 {[%emt 0:01:13]} bxa5 {[%emt 0:01:36]} 21. Qa4 {[%emt 0:17:14]} Nb6 {[%emt 0:04:17]} 22. Qd1 {[%emt 0:02:26]} Rxd4 {[%emt 0:03:28]} 23. Nxd4 {[%emt 0:01:14]} Qg5 {[%emt 0:01:37]} 24. Bf1 {[%emt 0:00:30]} Rd8 {[%emt 0:05:24]} 25. Rc2 {[%emt 0:01:39]} Qxe5 {[%emt 0:00:30]} 26. Rd2 {[%emt 0:00:15]} Qf6 {[%emt 0:00:56]} 27. Nb3 {[%emt 0:01:26]} Rxd2 {[%emt 0:00:55]} 28. Qxd2 {[%emt 0:00:28]} a4 {[%emt 0:02:32]} 29. Nc5 {[%emt 0:00:14]} Bc6 {[%emt 0:03:09]} 30. Qd6 {[%emt 0:00:49]} Be8 {[%emt 0:01:10]} 31. Ne4 {[%emt 0:03:09]} Qh4 {[%emt 0:01:32]} 32. Qb8 {[%emt 0:00:20]} Qe7 {[%emt 0:00:43]} 33. Nd6 {[%emt 0:02:11]} Kf8 {[%emt 0:00:18]} 34. Bb5 {[%emt 0:00:14]} Nd7 {[%emt 0:00:22]} 35. Qc7 {[%emt 0:00:12]} Nf6 {[%emt 0:00:36]} 36. Qb8 {[%emt 0:00:29]} Nd7 {[%emt 0:00:41]} 37. Qc7 {[%emt 0:00:25]} Nf6 {[%emt 0:00:38]} 38. Qb8 {[%emt 0:00:19]} Nd7 {[%emt 0:00:22]} 1/2-1/2

[Event "2nd Serbian League-Vojvodina 2023"]
[Site "Novi Sad"]
[Date "2023.11.05"]
[Round "5.24"]
[White "Vranic, Ljubomir"]
[Black "Joksimovic, Dragoljub"]
[Result "1-0"]
[ECO "B07"]
[WhiteElo "2090"]
[BlackElo "2123"]
[Annotator "ChessBase"]
[PlyCount "65"]
[EventDate "2023.10.22"]
[EventType "team-tourn"]
[EventCountry "SRB"]
[SourceTitle "playchess.com"]
[Source "ChessBase"]
[SourceQuality "1"]
[TimeControl "40/5400+30:1800+30"]

1. d4 {[%emt 0:00:01]} Nf6 {[%emt 0:05:41]} 2. Nc3 {[%emt 0:01:06]} d6 {[%emt 0:00:16]} 3. e4 {[%emt 0:00:34]} Nbd7 {[%emt 0:00:47]} 4. Bg5 {[%emt 0:21:28]} c6 {[%emt 0:13:15]} 5. f4 {[%emt 0:12:48]} Qa5 {[%emt 0:05:38]} 6. Qd2 {[%emt 0:02:59]} h6 {[%emt 0:05:30]} 7. Bh4 {[%emt 0:01:05]} b5 {[%emt 0:04:23]} 8. Bd3 {[%emt 0:02:52]} b4 {[%emt 0:01:38]} 9. Nce2 {[%emt 0:00:46]} c5 {[%emt 0:02:16]} 10. e5 {[%emt 0:12:54]} g5 {[%emt 0:07:18]} 11. Bg3 {[%emt 0:08:15]} gxf4 {[%emt 0:05:55]} 12. Bxf4 {[%emt 0:07:14]} c4 {[%emt 0:04:00]} 13. exf6 {[%emt 0:03:23]} cxd3 {[%emt 0:00:20]} 14. fxe7 {[%emt 0:00:12]} Bxe7 {[%emt 0:04:55]} 15. Qxd3 {[%emt 0:00:18]} Bb7 {[%emt 0:03:59]} 16. Nf3 {[%emt 0:00:22]} Rg8 {[%emt 0:00:28]} 17. O-O {[%emt 0:02:51]} Nf6 {[%emt 0:01:31]} 18. c4 {[%emt 0:02:46]} Be4 {[%emt 0:00:46]} 19. Qe3 {[%emt 0:04:44]} Rd8 {[%emt 0:07:01]} 20. d5 {[%emt 0:01:01]} Qc7 {[%emt 0:04:08]} 21. b3 {[%emt 0:00:45]} Qd7 {[%emt 0:01:19]} 22. Ng3 {[%emt 0:01:21]} Qg4 {[%emt 0:01:55]} 23. Rae1 {[%emt 0:02:46]} Rd7 {[%emt 0:02:22]} 24. Nd4 {[%emt 0:03:23]} h5 {[%emt 0:03:40]} 25. Rf2 {[%emt 0:02:43]} Bxg2 {[%emt 0:08:10]} 26. Rxg2 {[%emt 0:00:49]} h4 {[%emt 0:00:02]} 27. Bxd6 {[%emt 0:01:13]} hxg3 {[%emt 0:01:04]} 28. Rxg3 {[%emt 0:00:56]} Qh5 {[%emt 0:04:05]} 29. Rxg8+ {[%emt 0:01:21]} Nxg8 {[%emt 0:00:04]} 30. Bg3 {[%emt 0:00:53]} Kf8 {[%emt 0:00:40]} 31. Nc6 {[%emt 0:00:15]} Qh8 {[%emt 0:02:54]} 32. Nxe7 {[%emt 0:01:28]} Nxe7 {[%emt 0:00:00]} 33. d6 {[%emt 0:00:26]} 1-0